[Event "Late-Titled-Tuesday-Blitz-January-16-2024"]
[Site "Chess.com"]
[Date "2024.01.16"]
[Round "3"]
[White "gxbg2000"]
[Black "diamonds13"]
[Result "0-1"]
[WhiteElo "2078"]
[BlackElo "2344"]
[TimeControl "180+1"]
[EndTime "14:27:00 PST"]
[Termination "diamonds13 won by checkmate"]

1. e4 {[%clk 0:02:54]} 1... c5 {[%clk 0:03:00]} 2. Nf3 {[%clk 0:02:53.7]} 2...
e6 {[%clk 0:03:00.4]} 3. d4 {[%clk 0:02:54.4]} 3... cxd4 {[%clk 0:03:00.8]} 4.
Nxd4 {[%clk 0:02:55.1]} 4... Nf6 {[%clk 0:03:01.3]} 5. Bd3 {[%clk 0:02:54.3]}
5... Nc6 {[%clk 0:03:01.1]} 6. Nxc6 {[%clk 0:02:54.2]} 6... bxc6 {[%clk
0:03:01]} 7. O-O {[%clk 0:02:55.1]} 7... d5 {[%clk 0:03:01]} 8. Qe2 {[%clk
0:02:51.6]} 8... Be7 {[%clk 0:02:59.3]} 9. Nc3 {[%clk 0:02:51.3]} 9... d4 {[%clk
0:02:59]} 10. Nd1 {[%clk 0:02:50.3]} 10... e5 {[%clk 0:02:57.9]} 11. f4 {[%clk
0:02:50.1]} 11... Nd7 {[%clk 0:02:57.3]} 12. f5 {[%clk 0:02:49.3]} 12... f6
{[%clk 0:02:57.6]} 13. b3 {[%clk 0:02:48.1]} 13... Nc5 {[%clk 0:02:55.4]} 14.
Nf2 {[%clk 0:02:46.7]} 14... a5 {[%clk 0:02:53.6]} 15. a4 {[%clk 0:02:46.1]}
15... Ba6 {[%clk 0:02:52.8]} 16. Bxa6 {[%clk 0:02:44.1]} 16... Nxa6 {[%clk
0:02:52.9]} 17. Nd3 {[%clk 0:02:43.5]} 17... Nb4 {[%clk 0:02:52.2]} 18. Nxb4
{[%clk 0:02:42.9]} 18... Bxb4 {[%clk 0:02:50.6]} 19. Qc4 {[%clk 0:02:41.5]}
19... Qd6 {[%clk 0:02:49.2]} 20. Bb2 {[%clk 0:02:16.7]} 20... Rb8 {[%clk
0:02:42.2]} 21. Rad1 {[%clk 0:02:15.6]} 21... Bc5 {[%clk 0:02:41.5]} 22. Qd3
{[%clk 0:02:13.2]} 22... Rb4 {[%clk 0:02:39.6]} 23. Kh1 {[%clk 0:02:12.7]} 23...
O-O {[%clk 0:02:37.1]} 24. Ba3 {[%clk 0:02:12]} 24... Rb6 {[%clk 0:02:35.6]} 25.
Bxc5 {[%clk 0:02:11.9]} 25... Qxc5 {[%clk 0:02:35.9]} 26. h4 {[%clk 0:02:08.3]}
26... Rfb8 {[%clk 0:02:34.1]} 27. h5 {[%clk 0:02:06.8]} 27... h6 {[%clk
0:02:34.4]} 28. Kh2 {[%clk 0:02:06.1]} 28... Qb4 {[%clk 0:02:31.2]} 29. Rf3
{[%clk 0:02:04]} 29... c5 {[%clk 0:02:30.8]} 30. Kh3 {[%clk 0:01:28.5]} 30...
Rc6 {[%clk 0:02:26.5]} 31. Qe2 {[%clk 0:01:11.2]} 31... c4 {[%clk 0:02:22.4]}
32. g3 {[%clk 0:01:04.6]} 32... d3 {[%clk 0:02:17.1]} 33. cxd3 {[%clk
0:01:02.1]} 33... cxb3 {[%clk 0:02:17]} 34. Rb1 {[%clk 0:00:58.9]} 34... Rc2
{[%clk 0:02:16.8]} 35. Qe3 {[%clk 0:00:54.4]} 35... b2 {[%clk 0:02:11.3]} 36.
Rff1 {[%clk 0:00:47.1]} 36... Qd2 {[%clk 0:02:09]} 37. Qxd2 {[%clk 0:00:44.4]}
37... Rxd2 {[%clk 0:02:09]} 38. Rf3 {[%clk 0:00:38]} 38... Rb4 {[%clk
0:02:06.5]} 39. Kg4 {[%clk 0:00:33]} 39... Rxa4 {[%clk 0:02:01.9]} 40. d4 {[%clk
0:00:33]} 40... exd4 {[%clk 0:01:38.9]} 41. Rb3 {[%clk 0:00:31.9]} 41... Ra2
{[%clk 0:01:38.7]} 42. Rb8+ {[%clk 0:00:29]} 42... Kf7 {[%clk 0:01:37.7]} 43.
Rb7+ {[%clk 0:00:29.9]} 43... Kf8 {[%clk 0:01:37.9]} 44. e5 {[%clk 0:00:27.4]}
44... fxe5 {[%clk 0:01:36.8]} 45. f6 {[%clk 0:00:26.5]} 45... Rf2 {[%clk
0:01:25.7]} 46. fxg7+ {[%clk 0:00:23.9]} 46... Kg8 {[%clk 0:01:25.8]} 47. Re1
{[%clk 0:00:19.5]} 47... Rf7 {[%clk 0:01:19]} 48. Rb8+ {[%clk 0:00:18.3]} 48...
Kxg7 {[%clk 0:01:19.1]} 49. Rxe5 {[%clk 0:00:18.2]} 49... d3 {[%clk 0:01:11]}
50. Rd5 {[%clk 0:00:16]} 50... Ra4+ {[%clk 0:01:09.4]} 51. Kh3 {[%clk
0:00:13.9]} 51... Rb4 {[%clk 0:01:10]} 52. Ra8 {[%clk 0:00:11.9]} 52... b1=Q
{[%clk 0:01:08.9]} 53. Raxa5 {[%clk 0:00:11.6]} 53... Qh1# {[%clk 0:01:08.3]}
0-1

[Event "Late-Titled-Tuesday-Blitz-January-16-2024"]
[Site "Chess.com"]
[Date "2024.01.16"]
[Round "3"]
[White "nindjaxx8"]
[Black "AEMEffi"]
[Result "1-0"]
[WhiteElo "2577"]
[BlackElo "2344"]
[TimeControl "180+1"]
[EndTime "14:27:02 PST"]
[Termination "nindjaxx8 won on time"]

1. d4 {[%clk 0:02:58.1]} 1... d5 {[%clk 0:03:00.1]} 2. c4 {[%clk 0:02:56.3]}
2... c6 {[%clk 0:03:00.4]} 3. Nc3 {[%clk 0:02:56.9]} 3... Nf6 {[%clk 0:03:00.3]}
4. cxd5 {[%clk 0:02:57.5]} 4... cxd5 {[%clk 0:03:01]} 5. Bf4 {[%clk 0:02:57.5]}
5... Nc6 {[%clk 0:03:01.5]} 6. e3 {[%clk 0:02:58]} 6... a6 {[%clk 0:02:58.2]} 7.
Nf3 {[%clk 0:02:58.6]} 7... e6 {[%clk 0:02:57.5]} 8. Bd3 {[%clk 0:02:57.4]} 8...
Bd6 {[%clk 0:02:57.7]} 9. Bg3 {[%clk 0:02:57.5]} 9... Bxg3 {[%clk 0:02:50.7]}
10. hxg3 {[%clk 0:02:58.4]} 10... Qd6 {[%clk 0:02:49.9]} 11. O-O {[%clk
0:02:57.8]} 11... O-O {[%clk 0:02:46.1]} 12. Rc1 {[%clk 0:02:56.8]} 12... e5
{[%clk 0:02:45.2]} 13. dxe5 {[%clk 0:02:52.2]} 13... Nxe5 {[%clk 0:02:46.1]} 14.
Nxe5 {[%clk 0:02:52.8]} 14... Qxe5 {[%clk 0:02:46.4]} 15. Be2 {[%clk 0:02:53.3]}
15... h5 {[%clk 0:02:32.2]} 16. Qd2 {[%clk 0:02:43.9]} 16... Bg4 {[%clk
0:02:29.1]} 17. Rfd1 {[%clk 0:02:41.2]} 17... Rad8 {[%clk 0:02:13.2]} 18. Qd4
{[%clk 0:02:24.4]} 18... Qg5 {[%clk 0:01:44.9]} 19. Bxg4 {[%clk 0:02:11.6]}
19... hxg4 {[%clk 0:01:44.5]} 20. Rd2 {[%clk 0:01:57.5]} 20... Rd6 {[%clk
0:01:13.5]} 21. Rcd1 {[%clk 0:01:49.5]} 21... Rfd8 {[%clk 0:01:13.4]} 22. Qc5
{[%clk 0:01:41.3]} 22... b6 {[%clk 0:01:01.6]} 23. Qa3 {[%clk 0:01:32.4]} 23...
b5 {[%clk 0:01:00.3]} 24. Qc5 {[%clk 0:01:29.7]} 24... Qe5 {[%clk 0:00:56.1]}
25. Rd4 {[%clk 0:01:21.8]} 25... R6d7 {[%clk 0:00:40.9]} 26. e4 {[%clk 0:01:04]}
26... Rc7 {[%clk 0:00:15.5]} 27. Qb6 {[%clk 0:01:01.5]} 27... Rdc8 {[%clk
0:00:14.7]} 28. exd5 {[%clk 0:00:51]} 28... Rc4 {[%clk 0:00:13.4]} 29. Rxc4
{[%clk 0:00:42.8]} 29... Rxc4 {[%clk 0:00:07.9]} 30. d6 {[%clk 0:00:42.9]} 30...
Nd7 {[%clk 0:00:06.8]} 31. Qd8+ {[%clk 0:00:42.8]} 31... Nf8 {[%clk 0:00:06.7]}
32. d7 {[%clk 0:00:43.5]} 32... Rd4 {[%clk 0:00:06.3]} 33. Qe8 {[%clk
0:00:28.8]} 1-0

[Event "Late-Titled-Tuesday-Blitz-January-16-2024"]
[Site "Chess.com"]
[Date "2024.01.16"]
[Round "3"]
[White "Polish_fighter3000"]
[Black "Byniolus"]
[Result "1-0"]
[WhiteElo "3098"]
[BlackElo "2748"]
[TimeControl "180+1"]
[EndTime "14:27:04 PST"]
[Termination "Polish_fighter3000 won by resignation"]

1. e4 {[%clk 0:03:00.9]} 1... d6 {[%clk 0:02:57.3]} 2. d4 {[%clk 0:03:00.6]}
2... Nf6 {[%clk 0:02:57.9]} 3. Nc3 {[%clk 0:03:01.1]} 3... e5 {[%clk 0:02:58.2]}
4. dxe5 {[%clk 0:02:56.1]} 4... dxe5 {[%clk 0:02:59.1]} 5. Qxd8+ {[%clk
0:02:56.3]} 5... Kxd8 {[%clk 0:03:00]} 6. Bc4 {[%clk 0:02:56.5]} 6... Be6 {[%clk
0:02:58.9]} 7. Bxe6 {[%clk 0:02:57]} 7... fxe6 {[%clk 0:02:59.8]} 8. f3 {[%clk
0:02:52.8]} 8... Bd6 {[%clk 0:02:55.9]} 9. Nh3 {[%clk 0:02:52.6]} 9... Ke7
{[%clk 0:02:53.8]} 10. Nf2 {[%clk 0:02:52.5]} 10... Nc6 {[%clk 0:02:53.5]} 11.
Ncd1 {[%clk 0:02:53]} 11... Nb4 {[%clk 0:02:44.8]} 12. Ne3 {[%clk 0:02:50.5]}
12... Bc5 {[%clk 0:02:43.9]} 13. a3 {[%clk 0:02:45.4]} 13... Bxe3 {[%clk
0:02:41]} 14. axb4 {[%clk 0:02:45.5]} 14... Bxf2+ {[%clk 0:02:40.1]} 15. Kxf2
{[%clk 0:02:45.5]} 15... a6 {[%clk 0:02:36.9]} 16. Bd2 {[%clk 0:02:43.5]} 16...
Rhf8 {[%clk 0:01:58.2]} 17. Ke2 {[%clk 0:02:42.9]} 17... Nd7 {[%clk 0:01:37.4]}
18. Ra5 {[%clk 0:02:37.8]} 18... h6 {[%clk 0:01:03.5]} 19. h4 {[%clk 0:02:28.6]}
19... Kf6 {[%clk 0:00:52.5]} 20. Bc3 {[%clk 0:02:24.9]} 20... c6 {[%clk
0:00:46]} 21. Ke3 {[%clk 0:02:20.2]} 21... Rad8 {[%clk 0:00:45.4]} 22. h5 {[%clk
0:01:58.6]} 22... Ke7 {[%clk 0:00:35.5]} 23. b3 {[%clk 0:01:34.3]} 23... Rg8
{[%clk 0:00:35.5]} 24. Rd1 {[%clk 0:01:20.9]} 24... Nf6 {[%clk 0:00:31.1]} 25.
Rh1 {[%clk 0:01:01.3]} 25... Nd7 {[%clk 0:00:31.2]} 26. Bb2 {[%clk 0:01:00]}
26... g6 {[%clk 0:00:30.3]} 27. hxg6 {[%clk 0:00:56.9]} 27... Rxg6 {[%clk
0:00:31.2]} 28. g4 {[%clk 0:00:55.6]} 28... Rf8 {[%clk 0:00:29.6]} 29. Rh3
{[%clk 0:00:50.9]} 29... Rf7 {[%clk 0:00:28.9]} 30. Ra1 {[%clk 0:00:48.5]} 30...
Rf8 {[%clk 0:00:21.4]} 31. Ba3 {[%clk 0:00:44.5]} 31... Rf7 {[%clk 0:00:12.7]}
32. b5+ {[%clk 0:00:44.4]} 32... Kf6 {[%clk 0:00:11.5]} 33. bxa6 {[%clk
0:00:44.3]} 33... bxa6 {[%clk 0:00:11.5]} 34. Bd6 {[%clk 0:00:44]} 34... Rg8
{[%clk 0:00:01.7]} 35. Rxh6+ {[%clk 0:00:43]} 35... Kg7 {[%clk 0:00:01.9]} 36.
Rxe6 {[%clk 0:00:40.3]} 36... Rh8 {[%clk 0:00:02.4]} 37. Rxe5 {[%clk 0:00:40.9]}
37... Rh3 {[%clk 0:00:02.1]} 38. Rg5+ {[%clk 0:00:40.6]} 38... Kh6 {[%clk
0:00:02]} 39. Rf5 {[%clk 0:00:41]} 39... Nf6 {[%clk 0:00:02.2]} 40. g5+ {[%clk
0:00:40]} 1-0

[Event "Late-Titled-Tuesday-Blitz-January-16-2024"]
[Site "Chess.com"]
[Date "2024.01.16"]
[Round "3"]
[White "Petukhov_Dmitry"]
[Black "mr_gustavo"]
[Result "1-0"]
[WhiteElo "2531"]
[BlackElo "2737"]
[TimeControl "180+1"]
[EndTime "14:27:06 PST"]
[Termination "Petukhov_Dmitry won on time"]

1. e4 {[%clk 0:03:00.8]} 1... d5 {[%clk 0:02:46.9]} 2. exd5 {[%clk 0:02:58]}
2... Qxd5 {[%clk 0:02:47.8]} 3. c4 {[%clk 0:02:58.9]} 3... Qd8 {[%clk
0:02:47.1]} 4. d4 {[%clk 0:02:58.9]} 4... Nf6 {[%clk 0:02:47.3]} 5. Nc3 {[%clk
0:02:59.2]} 5... g6 {[%clk 0:02:47]} 6. Nf3 {[%clk 0:02:56.9]} 6... Bg7 {[%clk
0:02:47.5]} 7. Be2 {[%clk 0:02:56.1]} 7... O-O {[%clk 0:02:48]} 8. O-O {[%clk
0:02:56.6]} 8... c6 {[%clk 0:02:46.7]} 9. Re1 {[%clk 0:02:56.5]} 9... Bg4 {[%clk
0:02:46.8]} 10. h3 {[%clk 0:02:54.6]} 10... Bxf3 {[%clk 0:02:46.9]} 11. Bxf3
{[%clk 0:02:55.5]} 11... Nbd7 {[%clk 0:02:47.2]} 12. Bf4 {[%clk 0:02:54.6]}
12... Ne8 {[%clk 0:02:32.2]} 13. b3 {[%clk 0:02:49.3]} 13... Nd6 {[%clk
0:02:30.1]} 14. Qd2 {[%clk 0:02:36.9]} 14... Re8 {[%clk 0:02:27.5]} 15. Rad1
{[%clk 0:02:35.8]} 15... Nf5 {[%clk 0:02:18.3]} 16. d5 {[%clk 0:02:23.8]} 16...
c5 {[%clk 0:02:00.7]} 17. d6 {[%clk 0:02:22.3]} 17... exd6 {[%clk 0:01:49.7]}
18. Nb5 {[%clk 0:02:21.3]} 18... Ne5 {[%clk 0:01:34.4]} 19. Bxb7 {[%clk
0:02:11.4]} 19... Rb8 {[%clk 0:01:34.1]} 20. Be4 {[%clk 0:02:01.3]} 20... Nd4
{[%clk 0:01:25]} 21. Nxd4 {[%clk 0:02:00.4]} 21... cxd4 {[%clk 0:01:25.4]} 22.
Bd5 {[%clk 0:01:53.3]} 22... Qf6 {[%clk 0:00:53.8]} 23. Kh1 {[%clk 0:01:39.7]}
23... Nd3 {[%clk 0:00:37.2]} 24. Bg5 {[%clk 0:01:08]} 24... Nxf2+ {[%clk
0:00:11.8]} 25. Kg1 {[%clk 0:01:06.3]} 25... Qf5 {[%clk 0:00:10.5]} 26. Rxe8+
{[%clk 0:00:51.3]} 26... Rxe8 {[%clk 0:00:11.4]} 27. Qxf2 {[%clk 0:00:51.8]}
27... Qd7 {[%clk 0:00:02.6]} 28. Bf6 {[%clk 0:00:48.8]} 28... Bh6 {[%clk
0:00:02.7]} 29. Bxd4 {[%clk 0:00:45.5]} 29... Bg5 {[%clk 0:00:02.2]} 30. Rf1
{[%clk 0:00:41.1]} 30... Rf8 {[%clk 0:00:02.5]} 31. Kh1 {[%clk 0:00:41.2]} 31...
Bd8 {[%clk 0:00:02.5]} 32. Bb2 {[%clk 0:00:38.7]} 32... Qe7 {[%clk 0:00:02.8]}
33. Qd4 {[%clk 0:00:38.6]} 33... Qe5 {[%clk 0:00:03.2]} 34. Qxe5 {[%clk
0:00:37.4]} 34... dxe5 {[%clk 0:00:04.1]} 35. Bxe5 {[%clk 0:00:38.1]} 35... Bb6
{[%clk 0:00:04.7]} 36. Bd6 {[%clk 0:00:36.9]} 1-0

[Event "Late-Titled-Tuesday-Blitz-January-16-2024"]
[Site "Chess.com"]
[Date "2024.01.16"]
[Round "3"]
[White "aceontheturn"]
[Black "FairChess_on_YouTube"]
[Result "0-1"]
[WhiteElo "2759"]
[BlackElo "3099"]
[TimeControl "180+1"]
[EndTime "14:27:09 PST"]
[Termination "FairChess_on_YouTube won by checkmate"]

1. e4 {[%clk 0:02:54.9]} 1... e5 {[%clk 0:02:59.6]} 2. Nf3 {[%clk 0:02:55.1]}
2... Nc6 {[%clk 0:03:00.2]} 3. Bc4 {[%clk 0:02:55.8]} 3... Bc5 {[%clk
0:02:59.6]} 4. c3 {[%clk 0:02:55.4]} 4... Nf6 {[%clk 0:02:59.2]} 5. d3 {[%clk
0:02:56.1]} 5... d6 {[%clk 0:02:58.4]} 6. Nbd2 {[%clk 0:02:56]} 6... h6 {[%clk
0:02:58.3]} 7. Bb3 {[%clk 0:02:55.4]} 7... a5 {[%clk 0:02:57.4]} 8. h3 {[%clk
0:02:55.6]} 8... Ba7 {[%clk 0:02:55.9]} 9. Nf1 {[%clk 0:02:55.4]} 9... Ne7
{[%clk 0:02:54.4]} 10. Ng3 {[%clk 0:02:52.5]} 10... Ng6 {[%clk 0:02:54.7]} 11.
d4 {[%clk 0:02:50.7]} 11... O-O {[%clk 0:02:53.1]} 12. O-O {[%clk 0:02:51.4]}
12... Re8 {[%clk 0:02:53.1]} 13. Re1 {[%clk 0:02:46]} 13... Be6 {[%clk
0:02:52.9]} 14. Be3 {[%clk 0:02:34.2]} 14... Qc8 {[%clk 0:02:46.6]} 15. Bxe6
{[%clk 0:02:29]} 15... Qxe6 {[%clk 0:02:45.3]} 16. dxe5 {[%clk 0:02:25.4]} 16...
Nxe5 {[%clk 0:02:40.6]} 17. Bxa7 {[%clk 0:02:24]} 17... Rxa7 {[%clk 0:02:39.9]}
18. Nd4 {[%clk 0:02:20.4]} 18... Qd7 {[%clk 0:02:40]} 19. a4 {[%clk 0:02:16]}
19... Raa8 {[%clk 0:02:39.6]} 20. Qb3 {[%clk 0:02:15.7]} 20... b6 {[%clk
0:02:38.1]} 21. Rad1 {[%clk 0:02:15]} 21... Ng6 {[%clk 0:02:35.4]} 22. Qb5
{[%clk 0:02:09.4]} 22... Re5 {[%clk 0:02:30.4]} 23. Qxd7 {[%clk 0:02:08.7]}
23... Nxd7 {[%clk 0:02:30.9]} 24. Nb5 {[%clk 0:02:07.1]} 24... Rc8 {[%clk
0:02:30]} 25. Rd4 {[%clk 0:01:51.8]} 25... Nc5 {[%clk 0:02:28.6]} 26. Red1
{[%clk 0:01:50.8]} 26... Nf4 {[%clk 0:02:24.2]} 27. f3 {[%clk 0:01:29.4]} 27...
Rg5 {[%clk 0:02:18.5]} 28. Kh2 {[%clk 0:01:23.4]} 28... Nfe6 {[%clk 0:02:03.7]}
29. Rc4 {[%clk 0:01:21.3]} 29... g6 {[%clk 0:02:03.3]} 30. Nf1 {[%clk
0:01:16.3]} 30... f5 {[%clk 0:02:02.2]} 31. exf5 {[%clk 0:01:09.1]} 31... gxf5
{[%clk 0:02:03.1]} 32. Ne3 {[%clk 0:01:08.9]} 32... Kf7 {[%clk 0:01:59.5]} 33.
f4 {[%clk 0:00:52.7]} 33... Rh5 {[%clk 0:01:59]} 34. Rd5 {[%clk 0:00:47.9]}
34... Kf6 {[%clk 0:01:32.4]} 35. g4 {[%clk 0:00:42.4]} 35... c6 {[%clk
0:01:32.6]} 36. gxh5 {[%clk 0:00:35.7]} 36... cxd5 {[%clk 0:01:32.8]} 37. Nxd5+
{[%clk 0:00:34.5]} 37... Kg7 {[%clk 0:01:32.9]} 38. Nxd6 {[%clk 0:00:34.2]}
38... Rd8 {[%clk 0:01:31.8]} 39. Nxf5+ {[%clk 0:00:33.1]} 39... Kh8 {[%clk
0:01:31]} 40. Nfe3 {[%clk 0:00:25.9]} 40... Nd3 {[%clk 0:01:31.1]} 41. f5 {[%clk
0:00:18.5]} 41... Ng5 {[%clk 0:01:28.5]} 42. Rc7 {[%clk 0:00:15.5]} 42... Rg8
{[%clk 0:01:26.1]} 43. Ng4 {[%clk 0:00:12.9]} 43... Re8 {[%clk 0:01:18.4]} 44.
Ndf6 {[%clk 0:00:11.6]} 44... Re2+ {[%clk 0:01:18.3]} 45. Kg3 {[%clk 0:00:11.6]}
45... Re1 {[%clk 0:00:52.9]} 46. h4 {[%clk 0:00:11.6]} 46... Rg1+ {[%clk
0:00:52.8]} 47. Kh2 {[%clk 0:00:05.1]} 47... Nf3+ {[%clk 0:00:53.1]} 48. Kh3
{[%clk 0:00:04.4]} 48... Nf4# {[%clk 0:00:54]} 0-1

[Event "Late-Titled-Tuesday-Blitz-January-16-2024"]
[Site "Chess.com"]
[Date "2024.01.16"]
[Round "3"]
[White "MikaelyanArman"]
[Black "Piotrek1979"]
[Result "1/2-1/2"]
[WhiteElo "2852"]
[BlackElo "2415"]
[TimeControl "180+1"]
[EndTime "14:27:09 PST"]
[Termination "Game drawn by repetition"]

1. d4 {[%clk 0:03:00.9]} 1... Nf6 {[%clk 0:02:58.8]} 2. c4 {[%clk 0:03:00.7]}
2... e6 {[%clk 0:02:59]} 3. Nf3 {[%clk 0:03:00.3]} 3... d5 {[%clk 0:02:59.6]} 4.
Nc3 {[%clk 0:02:59.1]} 4... dxc4 {[%clk 0:02:59.5]} 5. e3 {[%clk 0:02:58.6]}
5... a6 {[%clk 0:02:52.9]} 6. Bxc4 {[%clk 0:02:58.5]} 6... b5 {[%clk 0:02:52.7]}
7. Be2 {[%clk 0:02:58.7]} 7... Bb7 {[%clk 0:02:53.2]} 8. O-O {[%clk 0:02:58.8]}
8... Nbd7 {[%clk 0:02:49]} 9. b3 {[%clk 0:02:56.2]} 9... Bd6 {[%clk 0:02:43.9]}
10. Bb2 {[%clk 0:02:56.1]} 10... O-O {[%clk 0:02:42.8]} 11. Rc1 {[%clk
0:02:55.8]} 11... c5 {[%clk 0:02:34.6]} 12. dxc5 {[%clk 0:02:55.4]} 12... Nxc5
{[%clk 0:02:34.1]} 13. b4 {[%clk 0:02:50.4]} 13... Nce4 {[%clk 0:02:29]} 14.
Nxe4 {[%clk 0:02:50.7]} 14... Nxe4 {[%clk 0:02:28]} 15. Qd4 {[%clk 0:02:50]}
15... Qf6 {[%clk 0:02:09.6]} 16. Rfd1 {[%clk 0:02:13.6]} 16... Rfd8 {[%clk
0:01:55.9]} 17. Qxf6 {[%clk 0:01:55.4]} 17... gxf6 {[%clk 0:01:56.8]} 18. a3
{[%clk 0:01:50.6]} 18... Kf8 {[%clk 0:01:50.4]} 19. Nd4 {[%clk 0:01:45.3]} 19...
Be7 {[%clk 0:01:08.3]} 20. f3 {[%clk 0:01:41.3]} 20... Nd6 {[%clk 0:01:06.6]}
21. Nc6 {[%clk 0:01:41.1]} 21... Bxc6 {[%clk 0:01:04.4]} 22. Rxc6 {[%clk
0:01:42]} 22... Nf5 {[%clk 0:01:04.7]} 23. Kf2 {[%clk 0:01:36.6]} 23... Rxd1
{[%clk 0:01:02.4]} 24. Bxd1 {[%clk 0:01:37.5]} 24... Rd8 {[%clk 0:01:02.2]} 25.
Ke2 {[%clk 0:01:15.1]} 25... Nxe3 {[%clk 0:00:57.8]} 26. Kxe3 {[%clk 0:01:13]}
26... Rxd1 {[%clk 0:00:57.5]} 27. Rxa6 {[%clk 0:01:13.6]} 27... Re1+ {[%clk
0:00:50.6]} 28. Kf2 {[%clk 0:01:09.4]} 28... Rb1 {[%clk 0:00:50.2]} 29. Bd4
{[%clk 0:01:09]} 29... Rb3 {[%clk 0:00:42.5]} 30. Ra7 {[%clk 0:01:00.7]} 30...
h5 {[%clk 0:00:41.4]} 31. Kg3 {[%clk 0:00:51.7]} 31... Rd3 {[%clk 0:00:39.7]}
32. Bb6 {[%clk 0:00:30.6]} 32... f5 {[%clk 0:00:37.7]} 33. Kf2 {[%clk
0:00:27.1]} 33... Rd2+ {[%clk 0:00:37.4]} 34. Kf1 {[%clk 0:00:27]} 34... h4
{[%clk 0:00:37.2]} 35. Be3 {[%clk 0:00:25.9]} 35... Ra2 {[%clk 0:00:34.5]} 36.
h3 {[%clk 0:00:22.9]} 36... Ra1+ {[%clk 0:00:28.7]} 37. Kf2 {[%clk 0:00:22.4]}
37... Ra2+ {[%clk 0:00:29]} 38. Kf1 {[%clk 0:00:22.6]} 38... Ra1+ {[%clk
0:00:29.3]} 39. Ke2 {[%clk 0:00:21.6]} 39... Ra2+ {[%clk 0:00:28.9]} 40. Kf1
{[%clk 0:00:09.3]} 1/2-1/2

[Event "Late-Titled-Tuesday-Blitz-January-16-2024"]
[Site "Chess.com"]
[Date "2024.01.16"]
[Round "3"]
[White "dorpato"]
[Black "Akhayan"]
[Result "0-1"]
[WhiteElo "2138"]
[BlackElo "2365"]
[TimeControl "180+1"]
[EndTime "14:27:09 PST"]
[Termination "Akhayan won by checkmate"]

1. e4 {[%clk 0:03:00.9]} 1... a6 {[%clk 0:02:59.3]} 2. d4 {[%clk 0:02:55.8]}
2... e6 {[%clk 0:02:59.5]} 3. Nf3 {[%clk 0:02:50.4]} 3... d5 {[%clk 0:02:58.8]}
4. e5 {[%clk 0:02:49.2]} 4... Bd7 {[%clk 0:02:57.7]} 5. Bd3 {[%clk 0:02:41.5]}
5... Bb5 {[%clk 0:02:58]} 6. O-O {[%clk 0:02:36.8]} 6... Ne7 {[%clk 0:02:54.5]}
7. b3 {[%clk 0:02:31.2]} 7... Bxd3 {[%clk 0:02:52.9]} 8. Qxd3 {[%clk 0:02:30.9]}
8... Nf5 {[%clk 0:02:52.3]} 9. Bb2 {[%clk 0:02:26.2]} 9... c5 {[%clk 0:02:50.8]}
10. c3 {[%clk 0:02:25.6]} 10... Nc6 {[%clk 0:02:51.2]} 11. Nbd2 {[%clk
0:02:23.7]} 11... cxd4 {[%clk 0:02:49.4]} 12. cxd4 {[%clk 0:02:22.8]} 12... Nb4
{[%clk 0:02:49.3]} 13. Qb1 {[%clk 0:02:20.2]} 13... Rc8 {[%clk 0:02:48.7]} 14.
Rc1 {[%clk 0:02:15]} 14... Be7 {[%clk 0:02:39.2]} 15. Bc3 {[%clk 0:02:09.1]}
15... O-O {[%clk 0:02:32.6]} 16. a3 {[%clk 0:02:06.5]} 16... Nc6 {[%clk
0:02:31]} 17. Qb2 {[%clk 0:02:00.5]} 17... Na7 {[%clk 0:02:29.1]} 18. Nf1 {[%clk
0:01:58.8]} 18... Nb5 {[%clk 0:02:28.7]} 19. Ng3 {[%clk 0:01:54]} 19... Nxg3
{[%clk 0:02:23.1]} 20. hxg3 {[%clk 0:01:51]} 20... Qd7 {[%clk 0:02:21.6]} 21.
Bd2 {[%clk 0:01:38.3]} 21... h6 {[%clk 0:02:17.6]} 22. a4 {[%clk 0:01:25.8]}
22... Rxc1+ {[%clk 0:02:10.1]} 23. Bxc1 {[%clk 0:01:21.1]} 23... Na7 {[%clk
0:02:08.7]} 24. Be3 {[%clk 0:01:14]} 24... Rc8 {[%clk 0:02:05.7]} 25. Rc1 {[%clk
0:01:06.1]} 25... Rc6 {[%clk 0:02:04.6]} 26. Ne1 {[%clk 0:00:48.9]} 26... Qc8
{[%clk 0:01:54.2]} 27. Rc2 {[%clk 0:00:42.7]} 27... Qf8 {[%clk 0:01:49]} 28. Nd3
{[%clk 0:00:37.6]} 28... Qc8 {[%clk 0:01:38]} 29. Rc1 {[%clk 0:00:23.6]} 29...
Qf8 {[%clk 0:01:33.3]} 30. Rc2 {[%clk 0:00:15.1]} 30... Ba3 {[%clk 0:01:27.1]}
31. Qb1 {[%clk 0:00:14.5]} 31... Qc8 {[%clk 0:01:27.1]} 32. Rxc6 {[%clk
0:00:12.4]} 32... Qxc6 {[%clk 0:01:26.9]} 33. Qa2 {[%clk 0:00:10.8]} 33... Be7
{[%clk 0:01:24.4]} 34. Nc5 {[%clk 0:00:10.5]} 34... Bxc5 {[%clk 0:01:23.9]} 35.
dxc5 {[%clk 0:00:10.5]} 35... Nc8 {[%clk 0:01:24.2]} 36. Bd4 {[%clk 0:00:08.7]}
36... Ne7 {[%clk 0:01:24.5]} 37. b4 {[%clk 0:00:07.7]} 37... Nf5 {[%clk
0:01:24.2]} 38. Bb2 {[%clk 0:00:06.5]} 38... d4 {[%clk 0:01:23.9]} 39. Qb3
{[%clk 0:00:06.7]} 39... Qe4 {[%clk 0:01:22.3]} 40. b5 {[%clk 0:00:06.1]} 40...
axb5 {[%clk 0:01:21.5]} 41. axb5 {[%clk 0:00:05.6]} 41... Qe1+ {[%clk
0:01:17.4]} 42. Kh2 {[%clk 0:00:05.6]} 42... Qxf2 {[%clk 0:01:14.8]} 43. c6
{[%clk 0:00:05.7]} 43... bxc6 {[%clk 0:01:00.1]} 44. b6 {[%clk 0:00:05.4]} 44...
Ne3 {[%clk 0:00:58.4]} 45. Kh3 {[%clk 0:00:03.5]} 45... Qxg2+ {[%clk 0:00:55.3]}
46. Kh4 {[%clk 0:00:03.5]} 46... Qh2# {[%clk 0:00:47.8]} 0-1